[Event "Queens Festival Final-A 2022"]
[Site "Tornelo"]
[Date "2022.06.25"]
[Round "5.4"]
[White "Alboredo, Julia"]
[Black "Castrillon Gomez, Melissa"]
[Result "0-1"]
[ECO "A49"]
[WhiteElo "2252"]
[BlackElo "2198"]
[Annotator "TA"]
[PlyCount "106"]
[EventDate "2022.06.24"]
[EventType "tourn"]
[EventCountry "NET"]
[SourceTitle "playchess.com"]
[Source "ChessBase"]
[SourceQuality "1"]
[TimeControl "180+2"]

{[%evp 14,106,25,20,29,-37,-34,-15,-26,-54,-52,-90,-89,-77,-22,-116,-52,-43,-53,-57,-35,-31,-33,-27,-24,-29,-24,-22,-13,-30,-25,-18,-18,-45,-32,-27,-35,-74,-74,-74,-74,-74,-74,-86,-81,-86,-8,-8,-8,-105,-108,-99,-99,-103,-99,-98,-98,-105,-104,-181,-112,-231,-222,-336,-224,-391,-391,-565,-470,-1175,-869,-1810,-1887,-1701,-1660,-1731,-1531,-2235,-2075,-1877,-1602,-29973,-29974,-29979,-29981,-29983,-29984,-29983,-29984,-29983,-29984,-29983,-29984,-29986,-29986]} 1. d4 {[%emt 0:00:02]} Nf6 {[%emt 0:00:05]} 2. Nf3 {[%emt 0:00:02]} g6 {[%emt 0:00:02]} 3. c4 {[%emt 0:00:03]} c5 {[%emt 0:00:01]} 4. dxc5 {[%emt 0:00:14]} Bg7 {[%emt 0:00:06]} 5. g3 {[%emt 0:00:02]} O-O {[%emt 0:00:01]} 6. Bg2 {[%emt 0:00:02]} Na6 {[%emt 0:00:01]} 7. Nc3 {[%emt 0:00:14]} Nxc5 {[%emt 0:00:03]} 8. O-O {[%emt 0:00:01]} d6 {[%emt 0:00:02] A49: 1 d4 Nf6 2 Nf3 g6 3 g3: Anti-King's Indian systems.} 9. Rb1 {[%emt 0:00:07]} ({White should try} 9. Nd4 $11) 9... Bf5 $15 {[%emt 0:00:04]} 10. Ra1 {[%emt 0:00:03] [#]} Nfe4 $146 {[%emt 0:00:13] The position is equal.} ({Predecessor:} 10... Nce4 11. Nxe4 Bxe4 12. Nd4 Bxg2 13. Kxg2 Rc8 14. Qb3 Nd7 15. Be3 Qb6 16. Qxb6 Nxb6 {½-½ (47) Phan,Q (2349)-Dao,T (1862) Hanoi 2021}) 11. Nxe4 {[%emt 0:00:03]} Bxe4 {[%emt 0:00:01]} ({Much worse is} 11... Nxe4 12. Nd4 $11) 12. Nd4 {[%emt 0:00:11]} Bxg2 {[%emt 0:00:03] Black is more active.} 13. Kxg2 {[%emt 0:00:00]} Rc8 {[%emt 0:00:02]} (13... Qb6 $17) 14. Rb1 {[%emt 0:00:04]} (14. Be3 $1 $11) 14... Ne4 {[%emt 0:00:27]} (14... d5 $17 15. Nb5 dxc4 16. Qxd8 Rfxd8) 15. Qd3 {[%emt 0:00:10]} d5 {[%emt 0:00:12]} 16. cxd5 $1 {[%emt 0:00:15]} Qxd5 {[%emt 0:00:03]} (16... Nc5 $5 {[%cal Rc5d3]} 17. Qc4 a6 $15) 17. Nf3 {[%emt 0:00:02]} Qxd3 {[%emt 0:00:08]} (17... Qe6 {feels hotter.} 18. Rd1 Nc5 19. Qa3 Qxe2 20. Be3 Qb5) 18. exd3 {[%emt 0:00:00]} Nc5 {[%emt 0:00:02]} 19. d4 {[%emt 0:00:19]} Ne6 {[%emt 0:00:07]} 20. Be3 {[%emt 0:00:05]} Rfd8 {[%emt 0:00:02][%cal Re6d4]} 21. Rfd1 {[%emt 0:00:05]} Rd5 {[%emt 0:00:02]} 22. Rbc1 {[%emt 0:00:05]} Rcd8 {[%emt 0:00:14]} 23. Rc4 {[%emt 0:00:02]} b5 {[%emt 0:00:05]} 24. Rc6 {[%emt 0:00:42]} Nxd4 {[%emt 0:00:04]} 25. Bxd4 {[%emt 0:00:05]} Bxd4 {[%emt 0:00:02]} 26. Nxd4 {[%emt 0:00:03]} Rxd4 {[%emt 0:00:02]} 27. Rxd4 {[%emt 0:00:05]} Rxd4 $11 {[%emt 0:00:01][%mdl 4096] Endgame KR-KR} 28. Rc8+ {[%emt 0:00:00]} Kg7 {[%emt 0:00:02]} 29. Rc7 {[%emt 0:00:00][%csl LRa7,LRe7]} Rd2 {[%emt 0:00:14]} (29... Ra4 $17 30. a3 Kf6) 30. Rxe7 {[%emt 0:00:01]} a5 {[%emt 0:00:03]} 31. Ra7 {[%emt 0:00:04]} (31. Rb7 $1 $11 {was the only way to keep the balance.}) 31... a4 $17 {[%emt 0:00:07] Black converts the advantage convincingly.} ({But not} 31... Rxb2 $6 32. Rxa5 h5 33. a4 $11) 32. b4 {[%emt 0:00:13]} axb3 {[%emt 0:00:20]} 33. axb3 {[%emt 0:00:03]} Rb2 {[%emt 0:00:01]} 34. h4 {[%emt 0:00:04]} h5 {[%emt 0:00:04]} 35. Rb7 {[%emt 0:00:06]} Rxb3 {[%emt 0:00:01]} 36. Rb8 {[%emt 0:00:03]} (36. Rb6 $17) 36... b4 {[%emt 0:00:05]} ({Black should play} 36... Kf6 $19 {Strongly threatening ...b4.} 37. Kf1 Rb2) 37. Rb7 {[%emt 0:00:01]} (37. Rb6 $17) 37... Kf6 $19 {[%emt 0:00:05]} 38. Ra7 {[%emt 0:00:04]} (38. Kf1 {was necessary.}) 38... Rb1 {[%emt 0:00:07]} 39. Ra6+ $2 {[%emt 0:00:02]} (39. Kf3 {was called for.}) 39... Ke5 {[%emt 0:00:07] [#] And now ...Kd4 would win.} 40. Rb6 {[%emt 0:00:00]} (40. Ra7 $142 f6 41. Kf3) 40... b3 {[%emt 0:00:02]} 41. Rb8 {[%emt 0:00:02]} (41. Rb4 $142 Kd6 42. Kf3) 41... Kd4 {[%emt 0:00:06]} 42. Kf3 {[%emt 0:00:08]} Kc3 {[%emt 0:00:04] White must now prevent ...Rc1.} 43. Rc8+ {[%emt 0:00:01]} Kb2 {[%emt 0:00:02] [#] aiming for ...Rc1.} 44. Kf4 {[%emt 0:00:03]} Rc1 {[%emt 0:00:03]} 45. Rb8 {[%emt 0:00:06]} Rc4+ {[%emt 0:00:09]} 46. Kg5 {[%emt 0:00:04]} Rc5+ {[%emt 0:00:01]} 47. Kf4 {[%emt 0:00:08]} Kc2 {[%emt 0:00:04] Black mates.} 48. f3 {[%emt 0:00:07]} b2 {[%emt 0:00:01]} 49. g4 {[%emt 0:00:01]} b1=Q {[%emt 0:00:07]} 50. Rxb1 {[%emt 0:00:02]} Kxb1 {[%emt 0:00:02]} 51. Ke4 {[%emt 0:00:01]} Kc2 {[%emt 0:00:02]} 52. Kd4 {[%emt 0:00:02]} Ra5 {[%emt 0:00:02]} 53. gxh5 {[%emt 0:00:02]} Rxh5 {[%emt 0:00:03] Weighted Error Value: White=0.64/Black=0.14 (very precise)} 0-1

[Event "Queens Festival Final-A 2022"]
[Site "Tornelo"]
[Date "2022.06.25"]
[Round "6.1"]
[White "Ismayil, Malak"]
[Black "Alboredo, Julia"]
[Result "1-0"]
[ECO "B51"]
[WhiteElo "2001"]
[BlackElo "2252"]
[Annotator "TA"]
[PlyCount "107"]
[EventDate "2022.06.24"]
[EventType "tourn"]
[EventCountry "NET"]
[SourceTitle "playchess.com"]
[Source "ChessBase"]
[SourceQuality "1"]
[TimeControl "180+2"]

{[%evp 9,106,21,48,36,36,7,22,2,6,0,6,-19,-13,-19,-23,-18,-6,-17,-8,-74,-66,-74,-50,-69,-71,-68,-22,-37,0,0,0,-248,-4,-6,-5,-3,44,-196,22,20,154,0,104,57,322,15,44,34,237,230,289,254,283,268,311,327,654,646,1088,956,1195,537,745,136,418,391,739,720,967,935,1790,1851,29989,29990,29990,29991,29994,29995,29995,29992,29992,29992,29992,29993,29992,29993,29993,29994,29995,29994,29995,29996,29997,29996,29998,29999,29999,29999,29999]} 1. e4 {[%emt 0:00:02]} c5 {[%emt 0:00:04]} 2. Nf3 {[%emt 0:00:03]} d6 {[%emt 0:00:02]} 3. Bb5+ {[%emt 0:00:05]} Nc6 {[%emt 0:00:04]} 4. O-O {[%emt 0:00:03]} Bd7 {[%emt 0:00:01]} 5. Qe2 {[%emt 0:00:02]} a6 {[%emt 0:00:02]} 6. Bxc6 {[%emt 0:00:02] B51: Sicilian: Moscow Variation (3 Bb5+) without 3...Bd7.} Bxc6 {[%emt 0:00:02] [#]} 7. Rd1 $146 {[%emt 0:00:02]} ({Predecessor:} 7. d4 cxd4 8. Nxd4 Nf6 9. Nxc6 bxc6 10. Bg5 Qa5 11. Bxf6 gxf6 12. Na3 e6 13. Nc4 {½-½ (49) Thing,B (2237)-Magalashvili,D (2508) Batumi 2018}) 7... e5 {[%emt 0:00:04]} 8. d3 {[%emt 0:00:07] The position is equal.} Nf6 {[%emt 0:00:02]} 9. Bg5 {[%emt 0:00:06]} Be7 {[%emt 0:00:01]} 10. Nbd2 {[%emt 0:00:04][%cal Bb1d2,Bd2c4,Bc4e3][%mdl 32]} O-O {[%emt 0:00:02]} 11. Nc4 {[%emt 0:00:03]} b5 {[%emt 0:00:02]} 12. Ne3 {[%emt 0:00:01]} g6 {[%emt 0:00:12]} 13. c3 {[%emt 0:00:40]} Nh5 {[%emt 0:00:04]} 14. Bxe7 {[%emt 0:00:05]} (14. Bh6 $1 $11) 14... Qxe7 $17 {[%emt 0:00:00]} 15. g3 {[%emt 0:00:03]} Ng7 {[%emt 0:00:11]} (15... f5 $5 {[%cal Rf5e4]} 16. Nd5 Bxd5 17. exd5 Rae8 $15) 16. Nd5 {[%emt 0:00:08]} Bxd5 {[%emt 0:00:05]} 17. exd5 {[%emt 0:00:02]} f5 {[%emt 0:00:02]} (17... Qb7 $15) 18. d4 $11 {[%emt 0:00:01]} e4 {[%emt 0:00:02]} 19. dxc5 {[%emt 0:00:22]} dxc5 {[%emt 0:00:17]} 20. Qe3 $2 {[%emt 0:00:08]} (20. d6 $11 {and White is okay.} Qf6 21. Ne1) 20... Qd6 $2 {[%emt 0:00:05]} (20... f4 $1 $19 {[%cal Rf4e3]} 21. gxf4 Nf5) 21. Ne1 {[%emt 0:00:07]} Rae8 {[%emt 0:00:06] And now ...f4 would win.} 22. Ng2 {[%emt 0:00:01] Inhibits f4.} Re5 {[%emt 0:00:10]} (22... Nh5 $11 {is more appropriate.}) 23. Nf4 $2 {[%emt 0:00:10] [#]} (23. c4 $1 $14 {stays ahead.}) 23... Rd8 $2 {[%emt 0:00:33]} (23... g5 $1 $19 {[%cal Rg5f4]} 24. Ne6 f4 25. gxf4 gxf4) 24. h4 {[%emt 0:00:06]} Qf6 {[%emt 0:00:10] [#]} (24... Nh5 $11 {keeps the balance.}) 25. Rd2 $2 {[%emt 0:00:04]} ({Much less strong is} 25. Qxc5 Nh5 $16) ({Better is} 25. a4 $1 $16) 25... c4 {[%emt 0:00:04]} (25... h6 $11 {remains equal.}) 26. Rad1 {[%emt 0:00:02]} ({White should play} 26. a4 $16) 26... h6 $2 {[%emt 0:00:01][%mdl 8192]} (26... Rd6 $14) 27. b3 $2 {[%emt 0:00:11]} (27. d6 $18) 27... cxb3 {[%emt 0:00:02]} 28. axb3 {[%emt 0:00:02]} Rd6 $2 {[%emt 0:00:14] White stays focused until the end.} (28... g5 $14 29. hxg5 hxg5) 29. c4 $18 {[%emt 0:00:02] Threatens to win with c5.} bxc4 {[%emt 0:00:02]} 30. bxc4 {[%emt 0:00:01] aiming for c5.} g5 {[%emt 0:00:01]} 31. Ng2 {[%emt 0:00:10] c5 is the strong threat.} Rd8 {[%emt 0:00:33]} 32. c5 {[%emt 0:00:05]} Nh5 $2 {[%emt 0:00:01]} (32... Rf8 33. c6 f4 34. gxf4 gxf4 35. Qxf4 Qxf4 36. Nxf4 Rxf4) 33. d6 {[%emt 0:00:12]} Re6 {[%emt 0:00:14]} 34. Qb3 {[%emt 0:00:08]} Kh8 {[%emt 0:00:06]} 35. Qb6 {[%emt 0:00:08]} (35. c6 $142) 35... f4 {[%emt 0:00:06]} 36. Qb2 $2 {[%emt 0:00:12]} (36. hxg5 $18 {and White stays clearly on top.} hxg5 37. c6) 36... fxg3 $2 {[%emt 0:00:09][%mdl 8192]} (36... e3 $16 37. fxe3 fxe3 38. hxg5 hxg5 39. Qxf6+ Nxf6) 37. Qxf6+ {[%emt 0:00:04]} Rxf6 $2 {[%emt 0:00:02]} (37... Nxf6 38. hxg5 (38. fxg3 e3 $18) 38... gxf2+ 39. Rxf2 (39. Kxf2 e3+ 40. Nxe3 Ne4+ 41. Kf3 Nxc5 $14) 39... hxg5) 38. fxg3 {[%emt 0:00:01]} Nxg3 {[%emt 0:00:05]} 39. c6 {[%emt 0:00:03] Hoping for c7.} gxh4 {[%emt 0:00:07]} 40. c7 {[%emt 0:00:07]} Rg8 {[%emt 0:00:01]} 41. d7 {[%emt 0:00:03] White mates.} e3 {[%emt 0:00:08]} 42. d8=Q {[%emt 0:00:09]} exd2 {[%emt 0:00:01]} 43. Qxf6+ {[%emt 0:00:02]} Kh7 {[%emt 0:00:02]} 44. Qf7+ {[%emt 0:00:03]} Rg7 {[%emt 0:00:02] [#]} 45. Qxg7+ $3 {[%emt 0:00:01]} Kxg7 {[%emt 0:00:00]} 46. c8=Q {[%emt 0:00:03]} h3 {[%emt 0:00:00]} 47. Qxh3 {[%emt 0:00:03]} Ne2+ {[%emt 0:00:03]} 48. Kh2 {[%emt 0:00:02]} Nd4 {[%emt 0:00:00]} 49. Qc3 {[%emt 0:00:02]} Kg6 {[%emt 0:00:03]} 50. Qxd4 {[%emt 0:00:01]} Kg5 {[%emt 0:00:00]} 51. Qxd2+ {[%emt 0:00:02]} Kg4 {[%emt 0:00:01]} 52. Qf4+ {[%emt 0:00:02]} Kh5 {[%emt 0:00:01]} 53. Rd6 {[%emt 0:00:02][%csl Gf4][%cal Rd6h6]} a5 {[%emt 0:00:03]} 54. Rxh6# {[%emt 0:00:02] Weighted Error Value: White=0.76/Black=0.89} 1-0

[Event "Queens Festival Final-A 2022"]
[Site "Tornelo"]
[Date "2022.06.25"]
[Round "6.2"]
[White "Balabayeva, Xeniya"]
[Black "Yuan, Ye"]
[Result "0-1"]
[ECO "C10"]
[WhiteElo "2177"]
[BlackElo "2108"]
[Annotator "RC"]
[PlyCount "38"]
[EventDate "2022.06.24"]
[EventType "tourn"]
[EventCountry "NET"]
[SourceTitle "playchess.com"]
[Source "ChessBase"]
[SourceQuality "1"]
[TimeControl "180+2"]

1. e4 {[%emt 0:00:02]} e6 {[%emt 0:00:07]} 2. d4 {[%emt 0:00:02]} d5 {[%emt 0:00:04]} 3. Nd2 {[%emt 0:00:01]} dxe4 {[%emt 0:00:03]} 4. Nxe4 {[%emt 0:00:02]} Nd7 {[%emt 0:00:01]} 5. Nf3 {[%emt 0:00:01]} Ngf6 {[%emt 0:00:04]} 6. Nxf6+ {[%emt 0:00:02]} Nxf6 {[%emt 0:00:01]} 7. g3 {[%emt 0:00:01]} c5 {[%emt 0:00:02]} 8. c3 {[%emt 0:00:27]} cxd4 {[%emt 0:00:08]} 9. Qxd4 {[%emt 0:00:02]} Qa5 {[%emt 0:00:08]} 10. b4 {[%emt 0:00:36]} Qa4 {[%emt 0:00:39]} 11. Bg2 {[%emt 0:00:18]} Be7 {[%emt 0:00:07]} 12. O-O {[%emt 0:00:07]} O-O {[%emt 0:00:01]} 13. Bb2 {[%emt 0:00:21]} Nd5 {[%emt 0:00:05]} 14. Ne5 {[%emt 0:00:30]} Bf6 {[%emt 0:00:02]} 15. Qe4 {[%emt 0:00:09]} a5 {[%emt 0:00:16]} 16. a3 {[%emt 0:00:04]} Qb3 {[%emt 0:00:03]} 17. Rab1 {[%emt 0:00:09]} Nxc3 {[%emt 0:00:03]} 18. Bxc3 {[%emt 0:00:02]} Qxc3 {[%emt 0:00:01]} 19. Rfc1 {[%emt 0:00:06]} Qxe5 {[%emt 0:00:03]} 0-1

[Event "Queens Festival Final-A 2022"]
[Site "Tornelo"]
[Date "2022.06.25"]
[Round "6.3"]
[White "Okuyaz, Duru"]
[Black "Gueci, Tea"]
[Result "1/2-1/2"]
[ECO "A04"]
[WhiteElo "2090"]
[BlackElo "2248"]
[Annotator "TA"]
[PlyCount "136"]
[EventDate "2022.06.24"]
[EventType "tourn"]
[EventCountry "NET"]
[SourceTitle "playchess.com"]
[Source "ChessBase"]
[SourceQuality "1"]
[TimeControl "180+2"]

{[%evp 15,136,-10,0,0,0,0,58,-52,-42,-53,-50,-47,-25,-32,-1,-126,-102,-109,-102,-91,-64,-102,-97,-107,0,-118,-173,-177,-120,-175,-179,-1257,-1256,-1229,-1174,-1049,-518,-510,-488,-496,-402,-397,-349,-395,-370,-519,-527,-515,-475,-477,-347,-331,-332,-389,-344,-489,-213,-234,-140,-312,-122,-312,-325,-293,-254,-416,-169,-352,0,0,0,-202,-181,-245,0,-38,-20,-29,7,7,7,0,0,0,0,0,0,0,0,0,0,0,0,0,0,0,455,329,406,0,0,0,5,0,137,23,137,146,148,148,163,163,7,0,163,163,29957,29956,12433,0,0,0,0]} 1. e4 {[%emt 0:00:02]} c5 {[%emt 0:00:05]} 2. Nf3 {[%emt 0:00:02]} e6 {[%emt 0:00:01]} 3. d3 {[%emt 0:00:02]} Nc6 {[%emt 0:00:04]} 4. Nbd2 {[%emt 0:00:02]} g6 {[%emt 0:00:02]} 5. g3 {[%emt 0:00:01]} Bg7 {[%emt 0:00:01]} 6. Bg2 {[%emt 0:00:00]} Nge7 {[%emt 0:00:02]} 7. O-O {[%emt 0:00:01]} d6 {[%emt 0:00:01]} 8. c3 {[%emt 0:00:01]} O-O {[%emt 0:00:07]} 9. h4 {[%emt 0:00:03] A04: Unusual lines after 1 Nf3 and King's Indian Attack.} f5 {[%emt 0:00:05][%cal Bf7f5,Bf5f4][%mdl 32]} 10. Re1 {[%emt 0:00:09]} h6 {[%emt 0:00:08]} (10... f4 $11) 11. Nf1 {[%emt 0:00:07]} (11. e5 $1 $14) 11... e5 $15 {[%emt 0:00:08]} 12. Ne3 {[%emt 0:00:20]} f4 {[%emt 0:00:10]} 13. Nd5 {[%emt 0:00:03][%cal Rg3f4]} Nxd5 {[%emt 0:00:09]} (13... Bg4 {is more complex.} 14. Qb3 Nxd5 15. Nh2 fxg3 16. Qxd5+ Kh7) 14. exd5 {[%emt 0:00:01]} Ne7 {[%emt 0:00:03] [#]} 15. d4 $146 {[%emt 0:00:17]} (15. gxf4 $11 exf4 16. Qe2 Nxd5 17. d4) ({Predecessor:} 15. Nd2 b6 16. a4 Bb7 17. Qb3 Qe8 18. Rf1 fxg3 19. fxg3 Rxf1+ 20. Nxf1 Qf7 21. c4 {0-1 (41) Volpinari,D (2003)-Michaelides,K (2023) Luxembourg 2016}) 15... cxd4 {[%emt 0:00:11]} 16. cxd4 {[%emt 0:00:02]} fxg3 {[%emt 0:00:11]} (16... Nxd5 17. dxe5 dxe5 18. Nxe5 $18) 17. fxg3 {[%emt 0:00:02][%cal Rd4e5]} Bg4 $36 {[%emt 0:00:06][%mdl 2048] Black fights for an advantage.} (17... Nxd5 18. dxe5 Qa5 19. Nh2 $16) 18. dxe5 {[%emt 0:00:02]} Bxe5 {[%emt 0:00:08]} 19. Bxh6 {[%emt 0:00:04]} Rf7 {[%emt 0:00:10]} (19... Nf5 $1 $17 20. Bxf8 Qb6+ 21. Kh2 (21. Kh1 $2 Bxf3 22. Qxf3 Nxg3+ 23. Qxg3 Bxg3 $19) 21... Bxg3+ 22. Kh1 Rxf8) 20. Qd3 {[%emt 0:00:02]} (20. Nxe5 $11 {keeps the balance.} Bxd1 21. Nxf7 Kxf7 22. Raxd1) 20... Bxf3 $17 {[%emt 0:00:27]} 21. Bxf3 {[%emt 0:00:03]} Nf5 {[%emt 0:00:01]} (21... Bxb2 22. Rab1 Be5 23. h5 $18 (23. Rxb7 Rb8 $16) (23. Bg5 Qc8 $16)) (21... Bxg3 22. Rxe7 $1 Qxe7 23. Qxg6+ Rg7 24. Qxg7+ (24. Bxg7 Qxg7 25. Qxg7+ Kxg7 $14) 24... Qxg7 25. Bxg7 Kxg7 26. Rc1 $11) (21... Qb6+ $1 $19 22. Kg2 (22. Kh1 $2 Nf5 $19) 22... Qxb2+ 23. Qe2 Qxe2+ 24. Bxe2 Bxa1 25. Rxa1 Kh7) 22. Bg5 {[%emt 0:00:02]} (22. Kg2 $17 Bxg3 23. Bg5 Nxh4+ 24. Bxh4 Bxh4 25. Re4) 22... Qb6+ $19 {[%emt 0:00:02]} 23. Be3 $2 {[%emt 0:00:36]} (23. Kg2 Qxb2+ 24. Qe2) 23... Nxe3 {[%emt 0:00:27][%mdl 64] Discovered Attack} 24. Rxe3 {[%emt 0:00:07]} Rxf3 $1 {[%emt 0:00:12]} 25. Qxg6+ {[%emt 0:00:03]} Bg7 {[%emt 0:00:02]} (25... Kf8 $142 26. Qh6+ Bg7 27. Qxd6+ Qxd6 28. Rxf3+ Kg8) 26. Qe6+ {[%emt 0:00:05]} Kh8 {[%emt 0:00:03]} 27. Rae1 {[%emt 0:00:07]} Raf8 {[%emt 0:00:12]} 28. Kh2 {[%emt 0:00:10]} Qxb2+ {[%emt 0:00:09]} 29. Kh3 {[%emt 0:00:01]} Rf2 {[%emt 0:00:06]} (29... Qf2 $2 30. Rxf3 Qxf3 31. Qg6 $19) 30. Qg6 {[%emt 0:00:06]} (30. R1e2 $142 Rxe2 31. Rxe2) 30... Rh2+ {[%emt 0:00:02]} 31. Kg4 {[%emt 0:00:01]} Qd4+ {[%emt 0:00:07]} 32. Re4 {[%emt 0:00:02]} Qf6 {[%emt 0:00:02]} 33. Qxf6 {[%emt 0:00:05]} Bxf6 {[%emt 0:00:00]} (33... Rxf6 $2 34. R4e2 Rg6+ 35. Kh5 Rxe2 36. Rxe2 Rxg3 37. Re7) 34. Kh5 {[%emt 0:00:04]} Kg7 {[%emt 0:00:04]} 35. Rg4+ {[%emt 0:00:02]} (35. Rb1 $142 Rh8+ 36. Kg4) 35... Kh7 {[%emt 0:00:05]} (35... Kf7 $142 {[%cal Rf8h8]} 36. Rf4 Rg2) 36. Re6 {[%emt 0:00:05]} Bg7 {[%emt 0:00:06]} ({Black should play} 36... Rxa2 $19 {...Rf2 is the strong threat.} 37. Rxd6 Re2) 37. Rgg6 $2 {[%emt 0:00:08]} (37. Rxd6 $17 {was called for.} Rf5+ 38. Rg5) 37... Rd2 $2 {[%emt 0:00:07]} ({Avoid the trap} 37... Rxa2 $2 38. Rxd6 Rf5+ 39. Rg5 $19) (37... Rf5+ $19 {has better winning chances.} 38. Rg5 Rf7 39. Rxd6 Rxa2) 38. Kg4 $2 {[%emt 0:00:04]} (38. Rxd6 $17 {was the only chance.} Rf5+ 39. Rg5) 38... Rd4+ {[%emt 0:00:01]} ({Don't go for} 38... Rxd5 $2 39. Rxd6 Rff5 40. Rxd5 Rxd5 41. Re6) 39. Kh3 {[%emt 0:00:04]} Rxd5 {[%emt 0:00:00] Hoping for ...Be5.} 40. Rg4 $2 {[%emt 0:00:02]} (40. Rxd6 Rc5 41. Rg4) 40... Rd4 {[%emt 0:00:03]} (40... Rf7 $142 41. Rf4 Rc7) 41. Rg5 $2 {[%emt 0:00:04]} (41. Rxd4 Bxd4 42. Rxd6) 41... d5 $2 {[%emt 0:00:01]} (41... Rf7 $19 {Strongly threatening ...Be5.} 42. Rh5+ Kg8 43. Re8+ Bf8 44. Rg5+ Kh7 45. Rh5+ Kg8 46. Rg5+ Kh7 47. Rh5+ Kg7 48. Rg5+ Kh6 49. Re6+ Kh7 50. Rh5+ Kg8) 42. Re7 $11 {[%emt 0:00:01][%csl LRb7,LRg7] Against Be5} Rg8 {[%emt 0:00:01]} 43. h5 $2 {[%emt 0:00:01] [#]} (43. Rxb7 $11 Ra4 44. Rc7) 43... Kh8 $1 $19 {[%emt 0:00:04]} 44. Rg6 {[%emt 0:00:03]} (44. Rxb7 $142 a5 45. Rb5) 44... Kh7 $2 {[%emt 0:00:05]} (44... Bf8 $19 45. Rxg8+ Kxg8 46. Rxb7 a5) 45. Rxb7 {[%emt 0:00:05]} Rc4 {[%emt 0:00:02]} 46. Rd6 {[%emt 0:00:02]} Rcc8 {[%emt 0:00:01]} 47. h6 {[%emt 0:00:01][%mdl 64] Pin} Rcd8 {[%emt 0:00:03]} 48. Rxd8 {[%emt 0:00:03]} Rxd8 {[%emt 0:00:00]} 49. Rxg7+ {[%emt 0:00:01]} Kxh6 {[%emt 0:00:02]} 50. Rxa7 $11 {[%emt 0:00:04][%mdl 4096] Endgame KR-KR} d4 {[%emt 0:00:00][%cal Bd5d4,Bd4d3][%mdl 32]} 51. Re7 {[%emt 0:00:02]} d3 {[%emt 0:00:01] ( -> ...d2)} 52. Re1 {[%emt 0:00:02]} d2 {[%emt 0:00:01]} 53. Rd1 {[%emt 0:00:00]} Kg5 {[%emt 0:00:01] White must now prevent ...Kf5.} 54. Kg2 $1 {[%emt 0:00:02]} Kg4 {[%emt 0:00:01]} 55. Kf2 {[%emt 0:00:01]} Rh8 $2 {[%emt 0:00:04][%mdl 8192]} (55... Rd6 $11 {and Black has nothing to worry.}) 56. Rxd2 $18 {[%emt 0:00:04]} Rh2+ {[%emt 0:00:01]} 57. Ke1 $2 {[%emt 0:00:01]} ({White has to play} 57. Ke3 $18 Rh5 58. Kd4) 57... Rh1+ $11 {[%emt 0:00:02]} 58. Ke2 {[%emt 0:00:01] Threatens to win with a4.} ({Not} 58. Kf2 Rh2+ 59. Ke3 Rh5 $18) 58... Kxg3 {[%emt 0:00:02]} 59. Kd3 {[%emt 0:00:01] And now Kc3 would win.} Ra1 {[%emt 0:00:02]} (59... Kf4 $11) 60. Kc4 {[%emt 0:00:01]} ({Better is} 60. Kc3 $16) 60... Kf4 $1 {[%emt 0:00:01]} 61. Kb5 {[%emt 0:00:02]} Ke4 {[%emt 0:00:02]} 62. a4 {[%emt 0:00:01]} Rb1+ {[%emt 0:00:04]} 63. Kc6 {[%emt 0:00:02]} Ra1 {[%emt 0:00:02]} 64. Kb5 $2 {[%emt 0:00:02]} (64. Rh2 $11 Rc1+ 65. Kb6) 64... Rb1+ $18 {[%emt 0:00:02]} 65. Ka6 {[%emt 0:00:01]} Ke3 $2 {[%emt 0:00:03]} (65... Rb3 $18 66. a5 Ke5) 66. Rd8 {[%emt 0:00:02]} Ke4 {[%emt 0:00:06]} 67. Ka7 $2 {[%emt 0:00:01]} (67. a5 $18 {Intending Ka7 and mate.} Ke5 68. Ka7) 67... Ra1 $11 {[%emt 0:00:01]} 68. Re8+ {[%emt 0:00:04]} Kd5 {[%emt 0:00:01] Quite a comeback for White.  Weighted Error Value: White=0.79/Black=0.71} 1/2-1/2